[Event "*** SCC Grand Prix: Titled Tuesday Blitz"]
[Site "Chess.com"]
[Date "2020.06.23"]
[Round "5"]
[White "LuckIsMySkill"]
[Black "LogoCzar"]
[Result "1-0"]
[WhiteElo "2720"]
[BlackElo "2458"]
[TimeControl "180+1"]
[EndTime "10:58:15 PDT"]
[Termination "LuckIsMySkill won by checkmate"]

1. Nf3 {[%clk 0:03:00.9]} 1... d5 {[%clk 0:02:56.8]} 2. d4 {[%clk 0:02:58.8]}
2... Nf6 {[%clk 0:02:56.2]} 3. c4 {[%clk 0:02:58.9]} 3... c6 {[%clk 0:02:56.5]}
4. e3 {[%clk 0:02:55.4]} 4... e6 {[%clk 0:02:53.9]} 5. b3 {[%clk 0:02:54.1]}
5... Nbd7 {[%clk 0:02:51.9]} 6. Bd3 {[%clk 0:02:53.3]} 6... Ne4 {[%clk
0:02:46.8]} 7. O-O {[%clk 0:02:52.5]} 7... Bd6 {[%clk 0:02:45.9]} 8. Ba3 {[%clk
0:02:51.3]} 8... Qe7 {[%clk 0:02:34.2]} 9. Bxd6 {[%clk 0:02:48.7]} 9... Qxd6
{[%clk 0:02:35.1]} 10. Nfd2 {[%clk 0:02:48.9]} 10... f5 {[%clk 0:02:33.1]} 11.
f3 {[%clk 0:02:47.6]} 11... Nef6 {[%clk 0:02:27.6]} 12. Qc1 {[%clk 0:02:42.3]}
12... O-O {[%clk 0:02:26.5]} 13. Qa3 {[%clk 0:02:41.6]} 13... c5 {[%clk
0:02:26.1]} 14. Nc3 {[%clk 0:02:40.2]} 14... Qc6 {[%clk 0:02:20.7]} 15. cxd5
{[%clk 0:02:39.3]} 15... Nxd5 {[%clk 0:02:14.7]} 16. Nxd5 {[%clk 0:02:38.7]}
16... exd5 {[%clk 0:02:13.7]} 17. dxc5 {[%clk 0:02:34.3]} 17... Qxc5 {[%clk
0:02:07]} 18. Qxc5 {[%clk 0:02:33.5]} 18... Nxc5 {[%clk 0:02:07.9]} 19. Be2
{[%clk 0:02:26.9]} 19... f4 {[%clk 0:02:06.8]} 20. Kf2 {[%clk 0:02:19.2]} 20...
fxe3+ {[%clk 0:02:03.9]} 21. Kxe3 {[%clk 0:02:20.1]} 21... Re8+ {[%clk
0:01:54.7]} 22. Kf2 {[%clk 0:02:19.1]} 22... Bf5 {[%clk 0:01:54.7]} 23. b4
{[%clk 0:01:49.3]} 23... Ne6 {[%clk 0:01:45.1]} 24. Nb3 {[%clk 0:01:43.9]} 24...
d4 {[%clk 0:01:36.7]} 25. Bc4 {[%clk 0:01:40.8]} 25... Rac8 {[%clk 0:01:23.2]}
26. Bxe6+ {[%clk 0:01:21.6]} 26... Bxe6 {[%clk 0:01:22.8]} 27. Nxd4 {[%clk
0:01:21]} 27... Bd5 {[%clk 0:01:21.3]} 28. Rac1 {[%clk 0:01:15.1]} 28... Bxa2
{[%clk 0:01:12.6]} 29. Rxc8 {[%clk 0:01:10.7]} 29... Rxc8 {[%clk 0:01:10.5]} 30.
Ra1 {[%clk 0:01:11.6]} 30... Rd8 {[%clk 0:01:01.1]} 31. Ke3 {[%clk 0:00:55.2]}
31... Bc4 {[%clk 0:00:41.8]} 32. Rxa7 {[%clk 0:00:53.6]} 32... Re8+ {[%clk
0:00:41]} 33. Kf4 {[%clk 0:00:51.8]} 33... Re7 {[%clk 0:00:31.2]} 34. Nf5 {[%clk
0:00:36]} 34... Rf7 {[%clk 0:00:21.1]} 35. Ra8+ {[%clk 0:00:33.7]} 35... Rf8
{[%clk 0:00:21]} 36. Rxf8+ {[%clk 0:00:30.9]} 36... Kxf8 {[%clk 0:00:21.4]} 37.
Nd6 {[%clk 0:00:31.2]} 37... Bf1 {[%clk 0:00:16.9]} 38. Nxb7 {[%clk 0:00:20.6]}
38... Bxg2 {[%clk 0:00:16.8]} 39. b5 {[%clk 0:00:14.9]} 39... Ke7 {[%clk
0:00:15]} 40. b6 {[%clk 0:00:09.6]} 40... g5+ {[%clk 0:00:14.6]} 41. Kg3 {[%clk
0:00:04.6]} 41... Bf1 {[%clk 0:00:10.4]} 42. Nc5 {[%clk 0:00:05.1]} 42... Kd6
{[%clk 0:00:09.2]} 43. Ne4+ {[%clk 0:00:04.4]} 43... Kc6 {[%clk 0:00:08]} 44.
Nxg5 {[%clk 0:00:04.9]} 44... Bd3 {[%clk 0:00:06.6]} 45. Kf4 {[%clk 0:00:03.2]}
45... Kxb6 {[%clk 0:00:06.3]} 46. Ke5 {[%clk 0:00:04.1]} 46... Kc7 {[%clk
0:00:06]} 47. f4 {[%clk 0:00:04.2]} 47... Kd7 {[%clk 0:00:05.9]} 48. f5 {[%clk
0:00:04.4]} 48... h6 {[%clk 0:00:04.1]} 49. Nf7 {[%clk 0:00:04.3]} 49... h5
{[%clk 0:00:03.8]} 50. Kf6 {[%clk 0:00:04.2]} 50... Ke8 {[%clk 0:00:02.8]} 51.
Ne5 {[%clk 0:00:03.7]} 51... Bc2 {[%clk 0:00:02.4]} 52. h4 {[%clk 0:00:04.3]}
52... Kf8 {[%clk 0:00:02.6]} 53. Ng6+ {[%clk 0:00:04.7]} 53... Kg8 {[%clk
0:00:02.4]} 54. Nf4 {[%clk 0:00:05.6]} 54... Bd1 {[%clk 0:00:02]} 55. Kg6 {[%clk
0:00:04.6]} 55... Bc2 {[%clk 0:00:01.8]} 56. Nxh5 {[%clk 0:00:04.5]} 56... Kh8
{[%clk 0:00:02]} 57. Nf6 {[%clk 0:00:03.9]} 57... Bd3 {[%clk 0:00:01.8]} 58. Kg5
{[%clk 0:00:04.1]} 58... Bc2 {[%clk 0:00:02.1]} 59. Ng4 {[%clk 0:00:04.7]} 59...
Bd1 {[%clk 0:00:02.2]} 60. h5 {[%clk 0:00:05.4]} 60... Kg7 {[%clk 0:00:02.7]}
61. f6+ {[%clk 0:00:05.2]} 61... Kh8 {[%clk 0:00:03.6]} 62. Ne5 {[%clk 0:00:05]}
62... Bb3 {[%clk 0:00:04]} 63. Kg6 {[%clk 0:00:04.8]} 63... Ba2 {[%clk
0:00:03.7]} 64. f7 {[%clk 0:00:04.9]} 64... Bxf7+ {[%clk 0:00:03.9]} 65. Kxf7
{[%clk 0:00:05.3]} 65... Kh7 {[%clk 0:00:04.2]} 66. Ng4 {[%clk 0:00:06]} 66...
Kh8 {[%clk 0:00:04.5]} 67. Kg6 {[%clk 0:00:06.6]} 67... Kg8 {[%clk 0:00:04.3]}
68. h6 {[%clk 0:00:07.1]} 68... Kh8 {[%clk 0:00:04.1]} 69. Ne5 {[%clk
0:00:07.7]} 69... Kg8 {[%clk 0:00:03.7]} 70. h7+ {[%clk 0:00:06.4]} 70... Kh8
{[%clk 0:00:03.3]} 71. Nf7# {[%clk 0:00:05.9]} 1-0

[Event "*** SCC Grand Prix: Titled Tuesday Blitz"]
[Site "Chess.com"]
[Date "2020.06.23"]
[Round "5"]
[White "OhanyanEminChess"]
[Black "Orange_Ghost"]
[Result "1-0"]
[WhiteElo "2539"]
[BlackElo "2742"]
[TimeControl "180+1"]
[EndTime "10:58:20 PDT"]
[Termination "OhanyanEminChess won by resignation"]

1. e4 {[%clk 0:03:00.9]} 1... e6 {[%clk 0:02:59.1]} 2. d4 {[%clk 0:02:58.7]}
2... d5 {[%clk 0:02:58.8]} 3. Nc3 {[%clk 0:02:57.8]} 3... Bb4 {[%clk 0:02:58]}
4. e5 {[%clk 0:02:57]} 4... c5 {[%clk 0:02:57.5]} 5. a3 {[%clk 0:02:57.1]} 5...
Bxc3+ {[%clk 0:02:58]} 6. bxc3 {[%clk 0:02:58]} 6... Qa5 {[%clk 0:02:58.4]} 7.
Bd2 {[%clk 0:02:56.7]} 7... Qa4 {[%clk 0:02:56]} 8. Qg4 {[%clk 0:02:52.9]} 8...
Kf8 {[%clk 0:02:55.8]} 9. Qd1 {[%clk 0:02:49.7]} 9... b6 {[%clk 0:02:51.2]} 10.
f4 {[%clk 0:02:46.4]} 10... Ba6 {[%clk 0:02:47.9]} 11. Bd3 {[%clk 0:02:44.5]}
11... Nc6 {[%clk 0:02:38.3]} 12. Nf3 {[%clk 0:02:41.9]} 12... Nge7 {[%clk
0:02:35.3]} 13. O-O {[%clk 0:02:31.3]} 13... Bxd3 {[%clk 0:02:24.3]} 14. cxd3
{[%clk 0:02:29.9]} 14... Qxd1 {[%clk 0:02:23.9]} 15. Rfxd1 {[%clk 0:02:27.6]}
15... c4 {[%clk 0:02:15.2]} 16. dxc4 {[%clk 0:02:15]} 16... dxc4 {[%clk
0:02:16.1]} 17. Ne1 {[%clk 0:02:15.3]} 17... Nd5 {[%clk 0:02:14.1]} 18. Nc2
{[%clk 0:02:15.2]} 18... Na5 {[%clk 0:02:13.1]} 19. Nb4 {[%clk 0:02:13.1]} 19...
Rd8 {[%clk 0:02:08.8]} 20. Rab1 {[%clk 0:02:09.1]} 20... h5 {[%clk 0:01:51.8]}
21. a4 {[%clk 0:01:56.5]} 21... g6 {[%clk 0:01:47]} 22. Nxd5 {[%clk 0:01:49.3]}
22... Rxd5 {[%clk 0:01:46.2]} 23. Rb5 {[%clk 0:01:50]} 23... Ke7 {[%clk
0:01:44]} 24. Bc1 {[%clk 0:01:47.3]} 24... Kd7 {[%clk 0:01:39.5]} 25. Ba3 {[%clk
0:01:45.5]} 25... Kc6 {[%clk 0:01:38.7]} 26. Rdb1 {[%clk 0:01:45.3]} 26... Rb8
{[%clk 0:01:25.5]} 27. Kf2 {[%clk 0:01:39.5]} 27... a6 {[%clk 0:01:18.7]} 28.
Rxd5 {[%clk 0:01:37]} 28... Kxd5 {[%clk 0:01:11]} 29. Ke3 {[%clk 0:01:34.3]}
29... Nb3 {[%clk 0:01:06.1]} 30. Bb4 {[%clk 0:01:30.1]} 30... Rc8 {[%clk
0:01:03.9]} 31. g3 {[%clk 0:01:27.1]} 31... Rc6 {[%clk 0:01:01.9]} 32. h3 {[%clk
0:01:23.4]} 32... Rc8 {[%clk 0:01:01.6]} 33. Rh1 {[%clk 0:01:18.1]} 33... Rh8
{[%clk 0:01:00.7]} 34. Be7 {[%clk 0:01:12]} 34... Kc6 {[%clk 0:00:57.9]} 35. Bf6
{[%clk 0:01:10.6]} 35... Rg8 {[%clk 0:00:54.2]} 36. g4 {[%clk 0:01:09.2]} 36...
b5 {[%clk 0:00:48.5]} 37. axb5+ {[%clk 0:00:55.7]} 37... Kxb5 {[%clk 0:00:49.4]}
38. Rg1 {[%clk 0:00:55.1]} 38... hxg4 {[%clk 0:00:47.6]} 39. hxg4 {[%clk
0:00:56]} 39... Ra8 {[%clk 0:00:40.9]} 40. Rh1 {[%clk 0:00:47.5]} 40... a5
{[%clk 0:00:39.2]} 41. Be7 {[%clk 0:00:45.2]} 41... a4 {[%clk 0:00:32.6]} 42.
Ba3 {[%clk 0:00:42.8]} 42... Ra7 {[%clk 0:00:30.4]} 43. Rh8 {[%clk 0:00:32.9]}
43... Rb7 {[%clk 0:00:28.6]} 44. Rc8 {[%clk 0:00:22.9]} 44... Ra7 {[%clk
0:00:19.4]} 45. f5 {[%clk 0:00:22.5]} 45... gxf5 {[%clk 0:00:18.6]} 46. gxf5
{[%clk 0:00:23.4]} 46... Rb7 {[%clk 0:00:14]} 47. d5 {[%clk 0:00:17.1]} 47...
exd5 {[%clk 0:00:13.4]} 48. e6 {[%clk 0:00:15.9]} 48... fxe6 {[%clk 0:00:12]}
49. fxe6 {[%clk 0:00:16.8]} 49... Na1 {[%clk 0:00:08.3]} 50. e7 {[%clk
0:00:14.4]} 50... Rxe7+ {[%clk 0:00:06]} 51. Bxe7 {[%clk 0:00:15.3]} 51... a3
{[%clk 0:00:05.3]} 52. Ra8 {[%clk 0:00:10.4]} 52... Kc6 {[%clk 0:00:04.4]} 53.
Bxa3 {[%clk 0:00:07.7]} 53... Kb7 {[%clk 0:00:05.1]} 54. Ra4 {[%clk 0:00:06.7]}
54... Kc6 {[%clk 0:00:05.1]} 55. Bf8 {[%clk 0:00:05.2]} 55... Nb3 {[%clk
0:00:04.2]} 56. Ra6+ {[%clk 0:00:04.3]} 56... Kd7 {[%clk 0:00:03.6]} 57. Bg7
{[%clk 0:00:01.9]} 57... Kc7 {[%clk 0:00:03.9]} 58. Ra7+ {[%clk 0:00:02.8]}
58... Kc6 {[%clk 0:00:04.3]} 59. Rf7 {[%clk 0:00:02.7]} 59... Kd6 {[%clk
0:00:04.2]} 60. Bd4 {[%clk 0:00:03.2]} 60... Ke6 {[%clk 0:00:04.7]} 61. Rf6+
{[%clk 0:00:03.7]} 61... Kd7 {[%clk 0:00:05.2]} 62. Rb6 {[%clk 0:00:04.5]} 62...
Kc7 {[%clk 0:00:05.6]} 63. Rxb3 {[%clk 0:00:03.8]} 63... cxb3 {[%clk 0:00:06.5]}
64. Kd2 {[%clk 0:00:04.4]} 64... Kc6 {[%clk 0:00:06.2]} 65. Kc1 {[%clk 0:00:05]}
65... Kb5 {[%clk 0:00:07.1]} 66. Kb2 {[%clk 0:00:04.8]} 66... Kc4 {[%clk
0:00:07.1]} 67. Bf6 {[%clk 0:00:05.7]} 67... Kb5 {[%clk 0:00:07.3]} 68. Kxb3
{[%clk 0:00:06]} 68... Kc5 {[%clk 0:00:08.2]} 69. Bd4+ {[%clk 0:00:06.8]} 69...
Kb5 {[%clk 0:00:08.6]} 70. Kc2 {[%clk 0:00:07.2]} 70... Kc4 {[%clk 0:00:09.5]}
71. Kd2 {[%clk 0:00:07.7]} 71... Kb3 {[%clk 0:00:10.4]} 72. Ke3 {[%clk
0:00:08.6]} 72... Kc4 {[%clk 0:00:11.3]} 73. Kf4 {[%clk 0:00:09.5]} 73... Kb5
{[%clk 0:00:12.2]} 74. Ke5 {[%clk 0:00:10.4]} 74... Kc6 {[%clk 0:00:13.1]} 75.
Ke6 {[%clk 0:00:10.8]} 75... Kb5 {[%clk 0:00:10.7]} 76. Kxd5 {[%clk 0:00:10.8]}
76... Ka4 {[%clk 0:00:11.6]} 77. c4 {[%clk 0:00:10.7]} 77... Ka5 {[%clk
0:00:12.5]} 78. c5 {[%clk 0:00:11.2]} 78... Ka6 {[%clk 0:00:12.9]} 79. c6 {[%clk
0:00:11.7]} 1-0

[Event "*** SCC Grand Prix: Titled Tuesday Blitz"]
[Site "Chess.com"]
[Date "2020.06.23"]
[Round "5"]
[White "czasnaszachy"]
[Black "timator"]
[Result "0-1"]
[WhiteElo "2247"]
[BlackElo "2544"]
[TimeControl "180+1"]
[EndTime "10:58:20 PDT"]
[Termination "timator won by resignation"]

1. d4 {[%clk 0:02:57.2]} 1... Nf6 {[%clk 0:02:58.7]} 2. c4 {[%clk 0:02:56.7]}
2... e6 {[%clk 0:02:59.1]} 3. Nc3 {[%clk 0:02:55.5]} 3... Bb4 {[%clk 0:02:59.6]}
4. e3 {[%clk 0:02:55.6]} 4... O-O {[%clk 0:02:59.4]} 5. Ne2 {[%clk 0:02:56.1]}
5... b6 {[%clk 0:02:59.9]} 6. a3 {[%clk 0:02:52.9]} 6... Bxc3+ {[%clk
0:03:00.2]} 7. Nxc3 {[%clk 0:02:52.9]} 7... Bb7 {[%clk 0:03:01.1]} 8. Bd3 {[%clk
0:02:53]} 8... Qe7 {[%clk 0:03:02]} 9. Qc2 {[%clk 0:02:49.4]} 9... e5 {[%clk
0:03:01.8]} 10. d5 {[%clk 0:02:46.3]} 10... c6 {[%clk 0:02:57.9]} 11. e4 {[%clk
0:02:43.9]} 11... cxd5 {[%clk 0:02:58.2]} 12. exd5 {[%clk 0:02:36.5]} 12... d6
{[%clk 0:02:39.4]} 13. O-O {[%clk 0:02:34.8]} 13... Nbd7 {[%clk 0:02:39.1]} 14.
Bg5 {[%clk 0:02:33.6]} 14... h6 {[%clk 0:02:37.1]} 15. Bh4 {[%clk 0:02:31.9]}
15... Rac8 {[%clk 0:02:36.7]} 16. b3 {[%clk 0:02:30.7]} 16... g5 {[%clk
0:02:29.1]} 17. Bg3 {[%clk 0:02:29.8]} 17... Kg7 {[%clk 0:02:30]} 18. Rae1
{[%clk 0:02:24.6]} 18... a6 {[%clk 0:02:26.5]} 19. Nd1 {[%clk 0:02:23.9]} 19...
Ne8 {[%clk 0:02:09.5]} 20. Ne3 {[%clk 0:02:23.2]} 20... Kg8 {[%clk 0:02:09.1]}
21. Ng4 {[%clk 0:01:49.5]} 21... h5 {[%clk 0:01:59]} 22. Nh6+ {[%clk 0:01:45.5]}
22... Kh8 {[%clk 0:01:59.2]} 23. h4 {[%clk 0:01:41.4]} 23... Ng7 {[%clk
0:01:48.8]} 24. Nf5 {[%clk 0:01:27.2]} 24... Nxf5 {[%clk 0:01:47.2]} 25. Bxf5
{[%clk 0:01:27.5]} 25... gxh4 {[%clk 0:01:47.6]} 26. Qe2 {[%clk 0:01:27.3]}
26... Qg5 {[%clk 0:01:36.3]} 27. Bxd7 {[%clk 0:01:26.1]} 27... Rcd8 {[%clk
0:01:36.4]} 28. f4 {[%clk 0:01:14.2]} 28... Qxg3 {[%clk 0:01:25.2]} 29. Qxh5+
{[%clk 0:01:13.4]} 29... Kg7 {[%clk 0:01:25.8]} 30. f5 {[%clk 0:00:53]} 30... f6
{[%clk 0:01:15.9]} 31. Re4 {[%clk 0:00:50.7]} 31... Rxd7 {[%clk 0:00:45.8]} 32.
Rg4+ {[%clk 0:00:50.6]} 32... Qxg4 {[%clk 0:00:46.7]} 33. Qxg4+ {[%clk 0:00:51]}
33... Kh8 {[%clk 0:00:47.6]} 34. Qxh4+ {[%clk 0:00:49.2]} 34... Rh7 {[%clk
0:00:48.2]} 35. Qe4 {[%clk 0:00:39.8]} 35... Rg8 {[%clk 0:00:41.6]} 36. Rf3
{[%clk 0:00:39.2]} 36... Rg5 {[%clk 0:00:32.7]} 37. Kf2 {[%clk 0:00:32.8]} 37...
Rhg7 {[%clk 0:00:29.4]} 38. Rh3+ {[%clk 0:00:30.3]} 38... Kg8 {[%clk 0:00:29.8]}
39. Rh2 {[%clk 0:00:29.9]} 39... Bc8 {[%clk 0:00:28.4]} 40. Qh4 {[%clk
0:00:24.7]} 40... Rxf5+ {[%clk 0:00:15.8]} 41. Ke2 {[%clk 0:00:20.4]} 41... Kf8
{[%clk 0:00:14.2]} 42. Qh8+ {[%clk 0:00:18.4]} 42... Rg8 {[%clk 0:00:14.7]} 43.
Qh6+ {[%clk 0:00:17.2]} 43... Rg7 {[%clk 0:00:14.6]} 44. Rh3 {[%clk 0:00:07.6]}
44... Rg5 {[%clk 0:00:13.1]} 45. Rf3 {[%clk 0:00:07.5]} 45... Bg4 {[%clk
0:00:07.5]} 46. Qxf6+ {[%clk 0:00:06.6]} 46... Kg8 {[%clk 0:00:07.9]} 47. Qd8+
{[%clk 0:00:06]} 47... Kh7 {[%clk 0:00:07.4]} 48. Qxd6 {[%clk 0:00:05.6]} 48...
e4 {[%clk 0:00:07.3]} 49. Qh2+ {[%clk 0:00:03.9]} 49... Rh5 {[%clk 0:00:04.7]}
50. Qf4 {[%clk 0:00:03]} 50... exf3+ {[%clk 0:00:04]} 51. gxf3 {[%clk 0:00:03]}
51... Bf5 {[%clk 0:00:04.2]} 52. d6 {[%clk 0:00:02.1]} 52... Kg6 {[%clk
0:00:03.4]} 53. b4 {[%clk 0:00:01.6]} 53... Kf6 {[%clk 0:00:03.7]} 54. c5 {[%clk
0:00:01.8]} 54... bxc5 {[%clk 0:00:03.8]} 55. bxc5 {[%clk 0:00:01.8]} 55... Rg2+
{[%clk 0:00:04]} 56. Ke3 {[%clk 0:00:01.8]} 56... Rh1 {[%clk 0:00:03.6]} 57.
Qd4+ {[%clk 0:00:02.2]} 57... Ke6 {[%clk 0:00:02.8]} 58. Qc4+ {[%clk 0:00:02.3]}
58... Kf6 {[%clk 0:00:02.9]} 59. Qd4+ {[%clk 0:00:02.6]} 59... Kg6 {[%clk
0:00:03.4]} 60. Qf4 {[%clk 0:00:02.2]} 60... Re1+ {[%clk 0:00:03.3]} 61. Kd4
{[%clk 0:00:02.5]} 61... Re8 {[%clk 0:00:03.5]} 62. d7 {[%clk 0:00:02.4]} 62...
Bxd7 {[%clk 0:00:03.1]} 63. Qd6+ {[%clk 0:00:02.7]} 63... Be6 {[%clk 0:00:03.7]}
64. c6 {[%clk 0:00:02.9]} 64... Rd2+ {[%clk 0:00:03.7]} 65. Kc5 {[%clk
0:00:03.3]} 65... Rxd6 {[%clk 0:00:04.6]} 66. Kxd6 {[%clk 0:00:03.7]} 66... Bc8
{[%clk 0:00:05.4]} 67. c7 {[%clk 0:00:03.9]} 67... Rf8 {[%clk 0:00:06.3]} 68.
Kc5 {[%clk 0:00:04]} 68... Rxf3 {[%clk 0:00:06.4]} 69. a4 {[%clk 0:00:04.5]}
69... Rf8 {[%clk 0:00:07.2]} 70. a5 {[%clk 0:00:04.9]} 70... Kf7 {[%clk
0:00:08.1]} 71. Kb6 {[%clk 0:00:05.4]} 71... Ke8 {[%clk 0:00:09]} 72. Ka7 {[%clk
0:00:06.2]} 72... Kd7 {[%clk 0:00:09.3]} 73. Kb8 {[%clk 0:00:07.1]} 73... Rf7
{[%clk 0:00:08.7]} 74. Ka8 {[%clk 0:00:06.9]} 74... Kxc7 {[%clk 0:00:08.6]} 75.
Ka7 {[%clk 0:00:06.9]} 75... Rg7 {[%clk 0:00:08.8]} 76. Ka8 {[%clk 0:00:07.2]}
76... Rg5 {[%clk 0:00:08.8]} 77. Ka7 {[%clk 0:00:07.3]} 77... Rxa5 {[%clk
0:00:09.7]} 78. Ka8 {[%clk 0:00:07.6]} 78... Rb5 {[%clk 0:00:09.5]} 0-1

[Event "*** SCC Grand Prix: Titled Tuesday Blitz"]
[Site "Chess.com"]
[Date "2020.06.23"]
[Round "5"]
[White "ShimanovAlex"]
[Black "Harsha_Bharathakoti"]
[Result "0-1"]
[WhiteElo "2869"]
[BlackElo "2832"]
[TimeControl "180+1"]
[EndTime "10:58:22 PDT"]
[Termination "Harsha_Bharathakoti won on time"]

1. d4 {[%clk 0:03:00.8]} 1... d5 {[%clk 0:03:00.1]} 2. Nf3 {[%clk 0:03:00.7]}
2... Nf6 {[%clk 0:03:00.1]} 3. Bf4 {[%clk 0:03:00.9]} 3... e6 {[%clk 0:03:00.1]}
4. e3 {[%clk 0:03:00.8]} 4... Bd6 {[%clk 0:03:00.2]} 5. Bxd6 {[%clk 0:03:01.2]}
5... Qxd6 {[%clk 0:03:00.3]} 6. c4 {[%clk 0:03:01.3]} 6... c5 {[%clk 0:02:56.5]}
7. Nc3 {[%clk 0:03:00]} 7... dxc4 {[%clk 0:02:51.5]} 8. Bxc4 {[%clk 0:02:56.1]}
8... O-O {[%clk 0:02:41.1]} 9. O-O {[%clk 0:02:55.5]} 9... Nc6 {[%clk
0:02:31.9]} 10. Nb5 {[%clk 0:02:48.5]} 10... Qe7 {[%clk 0:02:30.8]} 11. dxc5
{[%clk 0:02:46.8]} 11... Qxc5 {[%clk 0:02:27.4]} 12. Rc1 {[%clk 0:02:47.3]}
12... Rd8 {[%clk 0:02:23.2]} 13. Qe2 {[%clk 0:02:35]} 13... Qe7 {[%clk
0:02:16.1]} 14. a3 {[%clk 0:02:25.6]} 14... a6 {[%clk 0:02:07]} 15. Nc3 {[%clk
0:02:24.2]} 15... b5 {[%clk 0:01:53.1]} 16. Ba2 {[%clk 0:02:21.9]} 16... Bb7
{[%clk 0:01:52]} 17. Rfd1 {[%clk 0:02:09.1]} 17... h6 {[%clk 0:01:51.8]} 18. h3
{[%clk 0:02:08.8]} 18... Rac8 {[%clk 0:01:43.4]} 19. e4 {[%clk 0:02:04.7]} 19...
b4 {[%clk 0:01:39.2]} 20. axb4 {[%clk 0:01:54.9]} 20... Nxb4 {[%clk 0:01:37.9]}
21. Bb1 {[%clk 0:01:52.6]} 21... e5 {[%clk 0:01:32.9]} 22. Ne1 {[%clk
0:01:44.9]} 22... Rd4 {[%clk 0:01:02.5]} 23. Nc2 {[%clk 0:01:34.6]} 23... Nxc2
{[%clk 0:00:54]} 24. Bxc2 {[%clk 0:01:34.8]} 24... Rcd8 {[%clk 0:00:52.5]} 25.
Re1 {[%clk 0:01:34.6]} 25... Qb4 {[%clk 0:00:50.3]} 26. Bb1 {[%clk 0:00:44.6]}
26... Rd2 {[%clk 0:00:43.4]} 27. Qe3 {[%clk 0:00:45.1]} 27... Qxb2 {[%clk
0:00:40.1]} 28. Na4 {[%clk 0:00:43.2]} 28... Qd4 {[%clk 0:00:29.5]} 29. Nc5
{[%clk 0:00:40.6]} 29... Qxe3 {[%clk 0:00:29.5]} 30. Rxe3 {[%clk 0:00:40.7]}
30... Bc8 {[%clk 0:00:24.2]} 31. Ree1 {[%clk 0:00:40.2]} 31... a5 {[%clk
0:00:23.7]} 32. Nb3 {[%clk 0:00:37.6]} 32... Rb2 {[%clk 0:00:23.9]} 33. Nxa5
{[%clk 0:00:37.8]} 33... Be6 {[%clk 0:00:19.1]} 34. Rc2 {[%clk 0:00:28.8]} 34...
Rxc2 {[%clk 0:00:17.1]} 35. Bxc2 {[%clk 0:00:29]} 35... Rd2 {[%clk 0:00:17.9]}
36. Bb3 {[%clk 0:00:27.7]} 36... Bxb3 {[%clk 0:00:13.4]} 37. Nxb3 {[%clk
0:00:28]} 37... Rc2 {[%clk 0:00:14.2]} 38. g3 {[%clk 0:00:23.4]} 38... h5 {[%clk
0:00:11.2]} 39. Kg2 {[%clk 0:00:21.7]} 39... h4 {[%clk 0:00:11]} 40. gxh4 {[%clk
0:00:21.9]} 40... Nh5 {[%clk 0:00:11.1]} 41. Kf3 {[%clk 0:00:19.6]} 41... Nf4
{[%clk 0:00:10.4]} 42. Nc1 {[%clk 0:00:17.8]} 42... Rc3+ {[%clk 0:00:09.3]} 43.
Kg4 {[%clk 0:00:15.9]} 43... Nxh3 {[%clk 0:00:08.4]} 44. f3 {[%clk 0:00:11.5]}
44... Nf4 {[%clk 0:00:06.8]} 45. Rd1 {[%clk 0:00:08.7]} 45... Rc2 {[%clk
0:00:06.4]} 46. Nd3 {[%clk 0:00:07]} 46... Rg2+ {[%clk 0:00:06.6]} 47. Kf5
{[%clk 0:00:07.4]} 47... Nxd3 {[%clk 0:00:03.5]} 48. Rxd3 {[%clk 0:00:07.6]}
48... f6 {[%clk 0:00:03.1]} 49. Ke6 {[%clk 0:00:07]} 49... Rh2 {[%clk
0:00:02.3]} 50. Kf5 {[%clk 0:00:04.1]} 50... Rxh4 {[%clk 0:00:01.9]} 51. Kg6
{[%clk 0:00:04.6]} 51... Rh6+ {[%clk 0:00:02.2]} 52. Kf5 {[%clk 0:00:05]} 52...
Kh7 {[%clk 0:00:03.1]} 53. Kg4 {[%clk 0:00:05.1]} 53... Rg6+ {[%clk 0:00:03.4]}
54. Kh3 {[%clk 0:00:05.5]} 54... Rg1 {[%clk 0:00:03.6]} 55. Kh2 {[%clk
0:00:06.2]} 55... Rg5 {[%clk 0:00:02.9]} 56. Kh3 {[%clk 0:00:06.5]} 56... Kg6
{[%clk 0:00:03.5]} 57. Kh2 {[%clk 0:00:06.6]} 57... Kh5 {[%clk 0:00:03.8]} 58.
Kh3 {[%clk 0:00:07]} 58... Rg1 {[%clk 0:00:04.4]} 59. Kh2 {[%clk 0:00:07.6]}
59... Re1 {[%clk 0:00:04.9]} 60. Kg3 {[%clk 0:00:07.8]} 60... Kg5 {[%clk
0:00:05.6]} 61. Rd7 {[%clk 0:00:08]} 61... g6 {[%clk 0:00:05.4]} 62. Rd6 {[%clk
0:00:08.2]} 62... Rg1+ {[%clk 0:00:05.1]} 63. Kf2 {[%clk 0:00:08.6]} 63... Rb1
{[%clk 0:00:06]} 64. Kg3 {[%clk 0:00:09.1]} 64... Rb3 {[%clk 0:00:06.7]} 65. Rc6
{[%clk 0:00:09.3]} 65... f5 {[%clk 0:00:06.4]} 66. exf5 {[%clk 0:00:09.8]} 66...
gxf5 {[%clk 0:00:07.3]} 67. Rc5 {[%clk 0:00:10.1]} 67... e4 {[%clk 0:00:07.3]}
0-1